Cogmind - Beta 14 @@@ ROGUE MODE // 2024.08.20 @ 16:09:49 Player: CrossedViper Result: Destroyed by 7V-RTL with Railgun Performance ------------- Evolutions (1) 500 Regions Visited (6) 1200 Robots Destroyed (102) 510 Value Destroyed (1612) 1612 Prototype IDs (29) 580 Alien Tech Used (0) 0 Bonus (-888) -888 TOTAL SCORE: 3514 Bonus ------- High Alert Combat Kills 14 Aligned with FarCom 300 Friendly Fire -1202 Cogmind --------- Core Integrity 0/400 Matter 195/300 Energy 130/290 System Corruption 0% Temperature Warm (165) Movement Treading (160) Location -8/Mines Parts ------- > --- POWER (1) -------- Improved Deuterium Engine > --- PROPULSION (3) --- Light Treads Carbon-fiber Leg > --- UTILITY (2) ------ Core Shielding > --- WEAPON (3) ------- Light Cannon Advanced Assault Cannon > --- INVENTORY (5) ---- Improved Heat Sink AS-neutralizer No. 17b Mini Grenade Launcher Peak State ------------ > --- POWER ------------ Heavy Ion Engine > --- PROPULSION ------- Light Treads Potential Leg Potential Leg > --- UTILITY ---------- Improved Heat Sink High-capacity Storage Unit > --- WEAPON ----------- Assault Rifle Heavy Assault Rifle Advanced Assault Cannon > --- INVENTORY -------- Improved Deuterium Engine Light Treads Light Treads Light Treads Light Treads Light Treads Improved Cooling System Coolant Injector Core Shielding Medium Reflective Plating Advanced Beam Cannon Light Cannon Light Cannon Mini Grenade Launcher [Rating: 37] Favorites ----------- Power Heavy Ion Engine Engine Heavy Ion Engine Propulsion Light Treads Treads Light Treads Leg Potential Leg Wheel Wheel Utility High-capacity Storage Unit Device Improved Heat Sink Storage High-capacity Storage Unit Processor Experimental Core Analyzer Hackware Hacking Suite Protection Core Shielding Weapon Beamcaster Energy Gun Beamcaster Energy Cannon Particle Cannon Ballistic Gun Assault Rifle Ballistic Cannon Light Cannon Launcher Mini Grenade Launcher Build | -11 -10 -10 -9 -9 -9 -8 ------- Run | Yrd Mat Min Mat Min Exi Min Slots Evolved 2 | . . . 2 . . . Power . | . . . . . . . Propulsion 1 | . . . 1 . . . Utility . | . . . . . . . Weapon 1 | . . . 1 . . . Parts Attached 102 | 7 21 7 27 2 29 9 Power 12 | 1 1 2 6 1 1 . Engine 12 | 1 1 2 6 1 1 . Core . | . . . . . . . Reactor . | . . . . . . . Propulsion 23 | 2 6 . 7 . 7 1 Treads 18 | 2 4 . 7 . 5 . Leg 3 | . . . . . 2 1 Wheel 2 | . 2 . . . . . Hover . | . . . . . . . Flight . | . . . . . . . Utility 18 | 2 1 1 3 1 6 4 Device 7 | 1 . . 2 1 3 . Storage 5 | 1 1 1 . . 2 . Processor 1 | . . . . . . 1 Hackware 1 | . . . 1 . . . Protection 4 | . . . . . 1 3 Artifact . | . . . . . . . Weapon 49 | 2 13 4 11 . 15 4 Energy Gun 9 | 1 . 1 5 . 2 . Energy Cannon 15 | . 6 1 3 . 3 2 Ballistic Gun 6 | 1 2 . 1 . 2 . Ballistic Cannon 8 | . . . . . 6 2 Launcher 11 | . 5 2 2 . 2 . Special Weapon . | . . . . . . . Impact Weapon . | . . . . . . . Slashing Weapon . | . . . . . . . Piercing Weapon . | . . . . . . . Special Melee Weapon . | . . . . . . . Unidentified Prototypes 6 | . . . 4 . 1 1 Parts Lost 18 | . 1 . . . 8 9 Power 1 | . . . . . 1 . Propulsion 6 | . 1 . . . 3 2 Utility 3 | . . . . . . 3 Weapon 8 | . . . . . 4 4 Highest Loss Streak 9 | . 1 . . . 4 9 To Critical Strikes 6 | . . . . . 6 . Average Slot Usage (%) 98 | . 99 100 99 100 93 87 Engine 12 | . 14 14 10 11 11 11 Treads 28 | . 16 28 33 33 30 22 Wheel 2 | . 11 . . . . . Device 11 | . 14 14 10 11 10 . Storage 12 | . 14 14 11 11 10 7 Energy Gun 14 | . 4 2 30 22 9 . Energy Cannon 11 | . 18 24 . 11 8 16 Ballistic Gun 1 | . 3 . 1 . 3 . Ballistic Cannon 1 | . . . . . 4 13 Peak Build Rating 37 | 7 11 17 30 26 37 29 Average Rating 19 | 5 9 12 26 25 23 23 On Entrance 15 | . 7 11 17 25 26 22 Naked Turns . | . . . . . . . Heaviest Build 71 | 15 34 57 64 63 63 71 Greatest Support 60 | 40 40 40 60 60 60 60 Greatest Overweight (x) 1 | . 1 1 1 1 1 1 Average Overweight (x) . | . . . . . . 1 Largest Inventory Capacity 20 | 8 15 20 20 20 20 20 Average Capacity 17 | 7 11 16 20 20 19 16 Most Carried 20 | 4 15 20 20 20 20 14 Average Carried 15 | 1 10 15 19 19 12 10 Final Capacity 20 | 8 15 20 20 20 20 5 Final Carried 20 | 2 14 20 19 20 14 3 Class Distribution -------------------- 41% | Scavenger-Gunner 33% | Mutant 16% | Scavenger-Mutant 7% | Gunner Dominant Class ---------------- Mutant | -10/Materials Mutant | -10/Mines Scavenger-Gunner | -9/Materials Scavenger-Gunner | -9/Mines Gunner | -9/Exiles Tank | -8/Mines Resources | -11 -10 -10 -9 -9 -9 -8 ----------- Run | Yrd Mat Min Mat Min Exi Min Matter Collected 1811 | 196 451 163 364 46 591 . Remotely . | . . . . . . . Salvage Created 3110 | 208 755 278 1384 170 224 91 Parts 230 | 16 62 24 88 9 25 6 Haulers Intercepted 7 | . 2 . 5 . . . Recyclers Shooed 2 | 1 1 . . . . . Parts Field Recycled . | . . . . . . . Retrieved Matter . | . . . . . . . Parts Self-Destructed . | . . . . . . . Prevented . | . . . . . . . Kills | -11 -10 -10 -9 -9 -9 -8 ------- Run | Yrd Mat Min Mat Min Exi Min Combat Hostiles Destroyed 57 | . 16 9 24 2 4 2 Guns 25 | . 2 . 21 1 1 . Cannons 10 | . 4 2 . 1 1 2 AOE 22 | . 10 7 3 . 2 . Classes Destroyed 14 | 3 6 . 2 . 3 . Worker 6 | 2 2 . 2 . . . Builder 2 | . 2 . . . . . Tunneler 7 | 4 2 . . 1 . . Hauler 7 | . 2 . 5 . . . Recycler 7 | 1 3 . 2 1 . . Mechanic 1 | . . . 1 . . . Operator 1 | . 1 . . . . . Turret 1 | . . . . . 1 . Watcher 7 | . 2 . 5 . . . Swarmer 27 | . 9 7 9 2 . . Grunt 19 | . 7 2 8 . . 2 Sentry 7 | . . . 7 . . . Zionite 3 | . . . . . 3 . Assembled 3 | . . . . . 3 . Thug 4 | . . 3 . 1 . . Best Kill Streak 5 | 4 5 4 5 1 3 1 Combat Bots Only 4 | . 3 4 4 1 3 1 Max Kills in Single Turn 3 | 1 3 3 3 1 2 1 Gunslinging 1 | . . . 1 . . . Exploded 3 | . 2 2 3 . 2 . Melee . | . . . . . . . Uniques/NPCs Destroyed 4 | . . . . . 4 . 8R-AWN (-9/Exiles) EX-DEC (-9/Exiles) EX-BIN (-9/Exiles) EX-HEX (-9/Exiles) Combat | -11 -10 -10 -9 -9 -9 -8 -------- Run | Yrd Mat Min Mat Min Exi Min Hostile Shots Fired 304 | . 39 20 62 2 93 88 Missed 81 | . 10 5 15 1 28 22 Damage Taken 3680 | . 356 205 666 6 1130 1317 Core 528 | . 96 16 46 . 192 178 Absorbed by Shields . | . . . . . . . Redirected to Shielding 21 | . . . . . 7 14 Ignored by Resistances 120 | . . . . . . 120 Regen/Repaired (Parts) 127 | . 127 . . . . . Core Remaining (%) 77 | 100 . 55 . . . . Volleys Fired 287 | 17 70 24 64 14 74 24 Largest 3 | 2 2 2 3 3 3 3 Hottest 225 | 70 136 143 225 218 171 171 Shots Fired 602 | 34 115 43 180 41 154 35 Gun 357 | 34 44 7 176 27 69 . Cannon 217 | . 62 31 . 14 75 35 Launcher 28 | . 9 5 4 . 10 . Special . | . . . . . . . Kinetic 129 | 17 26 . 10 . 70 6 Thermal 445 | 17 80 38 166 41 74 29 Explosive 28 | . 9 5 4 . 10 . Electromagnetic . | . . . . . . . Robot Hit Streak 13 | 8 12 6 13 6 13 7 Robot Miss Streak 9 | 2 9 3 3 5 8 3 Penetration Max . | . . . . . . . Secondary Targets 1 | . . . 1 . . . Max Gunslinging Chain 1 | . . . 1 . . . Shots Hit Robots 329 | 25 59 26 88 20 86 25 Core Hits 154 | 8 36 16 41 7 37 9 Critical Kills 1 | . . . . . 1 . Critical Parts Destroyed . | . . . . . . . Critical Strikes 16 | 1 . . 10 1 4 . Burn 13 | 1 . . 10 1 1 . Meltdown 1 | . . . . . 1 . Destroy 1 | . . . . . 1 . Blast 1 | . . . . . 1 . Melee Attacks . | . . . . . . . Impact . | . . . . . . . Slashing . | . . . . . . . Piercing . | . . . . . . . Sneak Attacks . | . . . . . . . Combat Hostiles . | . . . . . . . Follow-up Attacks . | . . . . . . . Damage Inflicted 8243 | 331 1842 1073 2205 453 1817 522 Guns 3649 | 331 327 63 1975 283 670 . Cannons 2773 | . 765 481 . 167 838 522 Explosions 1776 | . 750 491 226 . 309 . Melee . | . . . . . . . Ramming 45 | . . 38 4 3 . . Kinetic 1181 | 182 174 . 53 . 703 69 Thermal 5241 | 149 918 544 1922 450 805 453 Explosive 1776 | . 750 491 226 . 309 . Electromagnetic . | . . . . . . . Impact . | . . . . . . . Slashing . | . . . . . . . Piercing . | . . . . . . . Highest Corruption . | . . . . . . . Average Corruption . | . . . . . . . Corruption Purged . | . . . . . . . Corruption Blocked . | . . . . . . . Overload Shots . | . . . . . . . Overflow Damage 132 | . 74 34 . 13 11 . Projectiles 42 | . 13 5 . 13 11 . Explosions 90 | . 61 29 . . . . Melee . | . . . . . . . Knockbacks 6 | . . 1 . . 5 . Impact 1 | . . 1 . . . . Kinetic 5 | . . . . . 5 . Secondary . | . . . . . . . Self-Inflicted Damage 182 | . 54 54 74 . . . Shots 6 | . 2 2 2 . . . Rammed 10 | . 1 6 2 1 . . Targets Rammed 10 | . 1 6 2 1 . . Kicked . | . . . . . . . Crushed . | . . . . . . . Highest Temperature 486 | 72 336 324 486 396 362 360 Average Temperature 133 | 32 107 145 136 174 134 200 Received Heat Transfer 774 | . 126 36 171 . . 441 Effects 15 | . 1 2 4 5 1 2 Shutdowns 2 | . . . 1 1 . . Energy Bleed 5 | . . 2 1 1 1 . Interference 6 | . 1 . . 3 . 2 Matter Decay 1 | . . . 1 . . . Damage (minor) 1 | . . . 1 . . . Siege Activations . | . . . . . . . Robots Corrupted . | . . . . . . . Combat Hostiles . | . . . . . . . Parts Fried . | . . . . . . . Impact Corruptions . | . . . . . . . Robots Melted 1 | . . . . . 1 . Combat Hostiles . | . . . . . . . Parts Melted 22 | 1 . 2 13 . 5 1 Heat Transferred 9491 | 518 1776 962 4033 851 957 394 Parts Sabotaged . | . . . . . . . Parts Stolen . | . . . . . . . Parts Stripped . | . . . . . . . Power Chain Reactions . | . . . . . . . Alert | -11 -10 -10 -9 -9 -9 -8 ------- Run | Yrd Mat Min Mat Min Exi Min Peak Influence 546 | 35 287 143 546 217 . 36 Initial 212 | . 22 93 7 212 . . Average 135 | 14 157 69 238 67 . 16 Maximum Alert Level 2 | . 1 . 2 1 . . Low Security (%) 68 | 100 55 100 47 74 . 100 Level 1 25 | . 44 . 30 25 . . Level 2 6 | . . . 21 . . . Level 3 . | . . . . . . . Level 4 . | . . . . . . . Level 5 . | . . . . . . . High Security . | . . . . . . . Max Security . | . . . . . . . Squads Dispatched 9 | . 4 . 4 1 . . Investigation 7 | . 3 . 3 1 . . Extermination . | . . . . . . . Reinforcement 2 | . 1 . 1 . . . Assault . | . . . . . . . Garrison . | . . . . . . . Intercept . | . . . . . . . Searches Triggered . | . . . . . . . Construction Impeded . | . . . . . . . Haulers Reinforced . | . . . . . . . Active Scanning Responses . | . . . . . . . Cargo Convoy Interrupts . | . . . . . . . Stealth | -11 -10 -10 -9 -9 -9 -8 --------- Run | Yrd Mat Min Mat Min Exi Min Distress Signals 4 | . 2 . 2 . . . Communications Jammed . | . . . . . . . Distress Signals . | . . . . . . . Times Spotted 102 | . 25 10 38 2 20 7 Peak Tracking Total 9 | . 5 4 4 1 9 9 Tactical Retreats 14 | . 4 . 2 . 8 . Traps | -11 -10 -10 -9 -9 -9 -8 ------- Run | Yrd Mat Min Mat Min Exi Min Traps Triggered 1 | . 1 . . . . . Indirectly . | . . . . . . . Trap Hack Attempts . | . . . . . . . Triggered . | . . . . . . . Disarmed . | . . . . . . . Reprogrammed . | . . . . . . . Reused . | . . . . . . . Traps Extracted . | . . . . . . . Installed . | . . . . . . . Triggered . | . . . . . . . Machines | -11 -10 -10 -9 -9 -9 -8 ---------- Run | Yrd Mat Min Mat Min Exi Min Machines Disabled 11 | . 2 . 1 . 8 . Max in Single Turn 1 | . 1 . 1 . 1 . Machines Repaired . | . . . . . . . Machines Dismantled . | . . . . . . . Machines Sabotaged . | . . . . . . . Overloaded Fab Kills . | . . . . . . . Hacking | -11 -10 -10 -9 -9 -9 -8 --------- Run | Yrd Mat Min Mat Min Exi Min Machines Accessed 19 | . 8 . 8 1 2 . Terminals 11 | . 5 . 6 . . . Fabricators . | . . . . . . . Repair Stations 1 | . 1 . . . . . Recycling Units 4 | . 2 . 2 . . . Scanalyzers . | . . . . . . . Garrison Access . | . . . . . . . Total Hacks 52 | . 33 . 16 1 2 . Successful 23 | . 16 . 4 1 2 . Failed 28 | . 16 . 12 . . . Catastrophic 3 | . 1 . 2 . . . Database Lockouts 1 | . 1 . . . . . Manual 35 | . 20 . 14 . 1 . Terminals 39 | . 25 . 14 . . . Fabricators . | . . . . . . . Repair Stations 6 | . 6 . . . . . Recycling Units 4 | . 2 . 2 . . . Scanalyzers . | . . . . . . . Garrison Access . | . . . . . . . Terminal Hacks 10 | . 7 . . 1 2 . Record 1 | . . . . . 1 . Part Schematic 1 | . 1 . . . . . Robot Analysis 2 | . 2 . . . . . Open Door 1 | . . . . 1 . . Branch Access Points 1 | . 1 . . . . . Recycling Unit Index 1 | . 1 . . . . . Locate Traps 1 | . 1 . . . . . Zone Layout 1 | . 1 . . . . . Derelict Proto ID Bank 1 | . . . . . 1 . Fabricator Hacks . | . . . . . . . Repair Station Hacks 4 | . 4 . . . . . Scan Component 2 | . 2 . . . . . Repair 2 | . 2 . . . . . Recycling Unit Hacks . | . . . . . . . Scanalyzer . | . . . . . . . Garrison Access Hacks . | . . . . . . . Unauthorized Hacks 9 | . 5 . 4 . . . Terminals 5 | . 3 . 2 . . . Botnet 5 | . 3 . 2 . . . Fabricators . | . . . . . . . Repair Stations . | . . . . . . . Recycling Units 4 | . 2 . 2 . . . Tunnel 4 | . 2 . 2 . . . Scanalyzers . | . . . . . . . Garrison Access . | . . . . . . . Data Cores Recovered 1 | . 1 . . . . . Used . | . . . . . . . Hacking Detections 10 | . 5 . 5 . . . Full Trace Events 6 | . 3 . 3 . . . Feedback Events . | . . . . . . . Feedback Blocked . | . . . . . . . Robot Schematics Acquired . | . . . . . . . Robots Built . | . . . . . . . Authchips . | . . . . . . . Time . | . . . . . . . Total Robot Build Rating . | . . . . . . . Part Schematics Acquired 1 | . 1 . . . . . Parts Built . | . . . . . . . Authchips . | . . . . . . . Time . | . . . . . . . Total Part Build Rating . | . . . . . . . Parts Repaired 2 | . 2 . . . . . Time 52 | . 52 . . . . . Parts Recycled . | . . . . . . . Recycled Matter . | . . . . . . . Retrieved Matter . | . . . . . . . Retrieved Components . | . . . . . . . Parts Scanalyzed . | . . . . . . . Part Schematics Acquired . | . . . . . . . Parts Damaged . | . . . . . . . Bothacking | -11 -10 -10 -9 -9 -9 -8 ------------ Run | Yrd Mat Min Mat Min Exi Min Used RIF Installer . | . . . . . . . Robots Hacked . | . . . . . . . Non-combat . | . . . . . . . Combat . | . . . . . . . Robot Hacks Applied . | . . . . . . . Relay Couplers Released . | . . . . . . . Fabnet Peak Effective % . | . . . . . . . Robots Rewired . | . . . . . . . Allies Hacked . | . . . . . . . Hacks Repelled . | . . . . . . . Allies | -11 -10 -10 -9 -9 -9 -8 -------- Run | Yrd Mat Min Mat Min Exi Min Total Allies 2 | . . 1 . 1 . . Largest Group 1 | . . 1 . 1 . . Highest-Rated Group 31 | . . 31 . 31 . . Highest-Rated Ally 31 | . . 31 . 31 . . Total Orders . | . . . . . . . Ally Attacks . | . . . . . . . Total Damage . | . . . . . . . Kills . | . . . . . . . Allies Corrupted . | . . . . . . . Allies Melted . | . . . . . . . Intel | -11 -10 -10 -9 -9 -9 -8 ------- Run | Yrd Mat Min Mat Min Exi Min Robot Analysis Total 2 | . 2 . . . . . Derelict Logs Recovered 2 | . . 2 . . . . Drone Launches . | . . . . . . . Drone Recoveries . | . . . . . . . Exploration | -11 -10 -10 -9 -9 -9 -8 ------------- Run | Yrd Mat Min Mat Min Exi Min Turns Passed 8994 | 155 1707 1489 1941 1576 2024 102 Spaces Moved 3618 | 58 693 590 678 623 963 13 Core 3 | 3 . . . . . . Treads 3191 | 55 400 590 678 623 832 13 Legs 131 | . . . . . 131 . Wheels 293 | . 293 . . . . . Hover . | . . . . . . . Flight . | . . . . . . . Fastest Speed 50 | 50 95 160 160 160 90 240 Average Speed 188 | 154 132 176 232 239 174 240 Slowest Speed 240 | 160 160 240 240 240 240 240 Overloaded Moves . | . . . . . . . Propulsion Burnouts . | . . . . . . . Robots Hopped . | . . . . . . . Cave-ins Triggered . | . . . . . . . Exploration Rate (%) 56 | 4 88 75 60 82 86 3 Regions Visited 6 Branch Regions 4 Pre-discovered Areas 8 | . 2 3 2 . 1 . Known Exits Taken 1 | . 1 . . . . . Unknown Exits Taken 5 | 1 . 1 1 1 1 . Scrap Searched 3 | . . 1 . 2 . . Spaces Dug 117 | . 48 22 47 . . . Terrain Destroyed 183 | . 66 47 47 . 20 3 Melee . | . . . . . . . Projectile 8 | . . . . . 5 3 AOE 175 | . 66 47 47 . 15 . Terrain Rammed . | . . . . . . . Walls Destroyed . | . . . . . . . Machines Disabled . | . . . . . . . Actions | -11 -10 -10 -9 -9 -9 -8 --------- Run | Yrd Mat Min Mat Min Exi Min Total 5244 | 89 1360 994 906 674 1173 48 Wait 1076 | . 549 343 112 25 45 2 Move 3612 | 57 692 589 677 622 962 13 Hop . | . . . . . . . Pick Up 81 | 8 20 15 7 5 26 . Fast Attach 19 | 1 3 . 5 1 8 1 Attach 29 | 6 1 1 5 . 11 5 Detach 5 | . . . 1 . 4 . Swap 54 | . 17 6 17 1 10 3 Drop 71 | . 7 10 16 5 33 . Fire 287 | 17 70 24 64 14 74 24 Melee . | . . . . . . . Ram . | . . . . . . . Kick . | . . . . . . . Crush 10 | . 1 6 2 1 . . Escape Stasis . | . . . . . . . Rewire . | . . . . . . . Trap . | . . . . . . . Miscellaneous . | . . . . . . . Route ------- -11/Scrapyard -10/Materials (discovered 4 exits: *Mat x2 / *Min x2) -10/Mines -9/Materials (discovered 3 exits: [*Mat x2] / *Min) -9/Mines (discovered 2 exits: [*Mat] / *Exi) -9/Exiles -8/Mines History --------- Turn | Location | Event 14 | -11/Scrapyard | Discovered new exit (range 15) 156 | -11/Scrapyard | Entered Materials 190 | -10/Materials | Identified exit to Mines 316 | -10/Materials | Build established: Mutant 608 | -10/Materials | Discovered new exit (range 5) 958 | -10/Materials | Discovered new exit (range 10) 1067 | -10/Materials | Central database locked down 1257 | -10/Materials | Repaired Lgt. Treads 1284 | -10/Materials | Repaired Lgt. Treads 1444 | -10/Materials | Build established: Scavenger-Mutant 1863 | -10/Materials | Entered Mines 1864 | -10/Mines | Assembled infested the area 1870 | -10/Mines | Escorted by a lone wolf Derelict 2128 | -10/Mines | Build established: Mutant 2168 | -10/Mines | Received a Rocket Launcher from a helpful Derelict 2563 | -10/Mines | Learned location of Zion (-7) 2929 | -10/Mines | Joined a pair of Derelicts in attacking an 0b10 outpost 2987 | -10/Mines | Discovered new exit (range 13) 3352 | -10/Mines | Entered Materials 3352 | -9/Materials | Evolved 2 slots: Propulsion x1, Weapon x1 3666 | -9/Materials | Build established: Scavenger-Gunner 4167 | -9/Materials | Discovered new exit (range 15) 4245 | -9/Materials | Discovered new exit (range 16) 4572 | -9/Materials | Discovered new exit (range 10) 5293 | -9/Materials | Entered Mines 5302 | -9/Mines | Met a Derelict shopkeep closing up shop 6178 | -9/Mines | Deemed a non-threat by the Exiles lab entrance 6178 | -9/Mines | Discovered new exit (range 5) 6402 | -9/Mines | Discovered new exit (range 9) 6460 | -9/Mines | Received a Mining Laser from a helpful Derelict 6869 | -9/Mines | Entered Exiles 6927 | -9/Exiles | Met 8R-AWN 6968 | -9/Exiles | Met EX-HEX 7071 | -9/Exiles | Met EX-DEC 7186 | -9/Exiles | Discovered new exit (range 14) 7509 | -9/Exiles | Build established: Scavenger-Mutant 7758 | -9/Exiles | Met EX-BIN 7782 | -9/Exiles | Aligned with FarCom system 7784 | -9/Exiles | Given EX-Vault access code 7821 | -9/Exiles | Opened EX-Vault 7838 | -9/Exiles | Found Potential Leg 7841 | -9/Exiles | Found Potential Leg 7863 | -9/Exiles | Warned to stay clear of 0b10 Research branches 7949 | -9/Exiles | Attacked by the Exiles 8118 | -9/Exiles | Lost 4 parts (3n1w) 8148 | -9/Exiles | Destroyed 8R-AWN 8160 | -9/Exiles | Found Prototype Device 8160 | -9/Exiles | Identified AS-neutralizer No. 17b 8235 | -9/Exiles | Core integrity fell below 50% 8497 | -9/Exiles | Destroyed EX-DEC 8505 | -9/Exiles | Found Prototype Processor 8556 | -9/Exiles | Destroyed EX-BIN 8586 | -9/Exiles | Destroyed EX-HEX 8628 | -9/Exiles | Build established: Gunner 8893 | -9/Exiles | Entered Mines 8925 | -8/Mines | 7V-RTL came to Exiles' defense 8960 | -8/Mines | Core integrity fell below 20% 8969 | -8/Mines | Identified Exp. Core Analyzer 8995 | -8/Mines | Destroyed by 7V-RTL with Railgun Last Messages --------------- 08944_ Lgt. Angular Momentum Engine melted. 08944_ G-50 Soldier destroyed. 08944_ Penetrated by Slug. 08944_ Slug penetrates Wall. 08947_ Penetrated by Slug. 08954_ Acquired Carbon-fiber Leg. 08956_ Penetrated by Slug. 08956_ Particle Cannon destroyed. 08965_ Penetrated by Slug. 08965_ Slug penetrates Earth. 08965_ Lgt. Treads destroyed. 08968_ Penetrated by Slug. 08968_ Slug penetrates Earth. 08969_ Identified Exp. Core Analyzer. 08974_ Particle Cannon destroyed. 08983_ Penetrated by Slug. 08983_ Exp. Core Analyzer destroyed. 08989_ Med. Reflective Plating destroyed. 08992_ Adv. Beam Cannon destroyed. 08995_ Penetrated by Slug. Map ----- +----------------------------------------------------+ | ????????????????????????????????????? | | ????????????????????????????????????? | | ????????????????????????????????????? | | ????????????????????????????????????? | | ????????????????????????????????????? | | ????????????????????????????????????? | | ????????????????????????????????????? | | ????????????????????????????????????? | | ????????????????????????????????????? | | ????????????????????????????????????? | | ????????????????????????????????????? | | ???????????????##???????????????????? | | ??????????????? ???????????????????? | | ???????????????= ???????????????????? | | ??????????????? #???????????????????? | | ??????????????? #???????????????????? | | ??????????????? #???????????????????? | | ??????????????# #???????????????????? | | ????????????### #???????????????????? | | ???????????? #%#???????????????????? | | ????????????#;# ###?????????????????? | | ????????????#!%Y #?????????????????? | | ???????????## %#?????????????????? | | ???????????#; = [#?????????????????? | | ???????????#; [%*%#?????????????????? | | ???????????#@ !| =#?????????????????? | | ??????????#;;!!! %#?????????????????? | | ??????????##; ] #?????????????????? | | ???????????###;;#;#?????????????????? | | ????????????? ###?????????????????? | | ????????????? # #???????????????????? | | ????????????? ? #???????????????????? | | | | | | | | | | | | | | | | | | | | | | | | | | | | | | | | | | | | | +----------------------------------------------------+ Best States ------------- Heat Dissipation 42 Coolant Potential 65 Energy Generation 16 Energy Capacity 290 Matter Stores 300 Matter Capacity 300 Sight Range 16 Terrain Scan Density 10 Armor Coverage 225 Resistance: TH 15 Core Shielding 20 Evasion (%) 57 Core Analysis 8 Recoil Reduction 3 Offensive Hacking 10 Item Schematics ----------------- Huge Storage Unit | -10/Materials | Hacked Robot Schematics ------------------ None Fabricated ------------ Nothing Alien Tech Used ----------------- None Achievements -------------- None Challenges ------------ None Game ------ Seed WarlordDisposableMapper Manual? 0 Play Time 00:38:44 Cumulative 886.9 hours Start 2024.08.20 @ 15:29:46 End 2024.08.20 @ 16:09:49 Sessions 1 Manual Loads 0 Difficulty Rogue Special Mode None Game No. 554 Rogue 547 Adventurer 0 Explorer 7 Win Type - Total 60 Types 22/6/20/2/0/1/6/1/2 Lore% 80 Gallery% 94 Achievement% 85 Wizard Run 0 Options --------- Layout 2 ASCII 0 Keyboard 0 Movement Numpad Keybinds 0 Fullscreen 1 Font 24/Smallcaps Map View 50x44 Zoom Use 0% Tactical HUD 1 Map Filters NONE Filters NONE Steam 1 RUN: 6d26f7d6-5429-42c6-9d9b-2cc1b7ed48f6